Cogmind - Beta 10 @@@ ROGUE MODE // 2020.09.17 @ 23:28:33 Player: KHORE-n Result: Destroyed by Y-45 Defender with Heavy Assault Rifle Performance ------------- Evolutions (1) 500 Regions Visited (3) 600 Robots Destroyed (89) 445 Value Destroyed (2342) 2342 Prototype IDs (5) 100 Alien Tech Used (0) 0 Bonus (163) 163 TOTAL SCORE: 4150 Bonus ------- High Alert Combat Kills 163 Cogmind --------- Core Integrity 0/400 Matter 176/300 Energy 280/280 System Corruption 1% Temperature Cool (17) Movement Walking (160) Ox1 Location -9/Storage Parts ------- > --- POWER (1) -------- Cooled Ion Engine > --- PROPULSION (3) --- Titanium Leg Titanium Leg > --- UTILITY (3) ------ Large Storage Unit Improved Sensor Array Signal Interpreter > --- WEAPON (2) ------- Assault Cannon Assault Cannon > --- INVENTORY (10) --- Ion Engine Light Nuclear Core Heat Sink Medium Battery (200) High-capacity Matter Pod (0) Integration Mediator Drone Bay (2/2) Particle Cannon Rocket Launcher Improved Datajack Peak State ------------ > --- POWER ------------ Cooled Ion Engine > --- PROPULSION ------- Titanium Leg Titanium Leg Titanium Leg > --- UTILITY ---------- Large Storage Unit Improved Sensor Array Signal Interpreter > --- WEAPON ----------- Assault Cannon Assault Cannon > --- INVENTORY -------- Ion Engine Light Nuclear Core Heat Sink Medium Battery High-capacity Matter Pod Integration Mediator Drone Bay Particle Cannon Rocket Launcher Improved Datajack [Rating: 24] Favorites ----------- Power Light Nuclear Core Engine Light Ion Engine Power Core Light Nuclear Core Propulsion Light Treads Treads Light Treads Leg Aluminum Leg Utility Small Storage Unit Device Improved Sensor Array Storage Small Storage Unit Processor Signal Interpreter Protection Core Shielding Weapon Assault Cannon Energy Gun EM Pulse Gun Energy Cannon Beam Cannon Ballistic Gun Light Assault Rifle Ballistic Cannon Assault Cannon Launcher Rocket Launcher Build | -11 -10 -9 -9 ------- Run | Scr Mat Mat Sto Slots Evolved 2 | . . 2 . Power . | . . . . Propulsion 1 | . . 1 . Utility 1 | . . 1 . Weapon . | . . . . Parts Attached 63 | 7 14 42 . Power 9 | 2 3 4 . Engine 7 | 2 3 2 . Core 2 | . . 2 . Reactor . | . . . . Propulsion 17 | 2 4 11 . Treads 3 | . . 3 . Leg 14 | 2 4 8 . Wheel . | . . . . Hover . | . . . . Flight . | . . . . Utility 11 | 1 1 9 . Device 6 | . . 6 . Storage 2 | 1 . 1 . Processor 2 | . . 2 . Hackware . | . . . . Protection 1 | . 1 . . Artifact . | . . . . Weapon 26 | 2 6 18 . Energy Gun 8 | 2 2 4 . Energy Cannon 1 | . 1 . . Ballistic Gun 2 | . 1 1 . Ballistic Cannon 14 | . 1 13 . Launcher 1 | . 1 . . Special Weapon . | . . . . Impact Weapon . | . . . . Slashing Weapon . | . . . . Piercing Weapon . | . . . . Special Melee Weapon . | . . . . Unidentified Prototypes 3 | . . 3 . Parts Lost 16 | . 3 12 1 Power 3 | . 2 1 . Propulsion 5 | . . 4 1 Utility 3 | . . 3 . Weapon 5 | . 1 4 . Highest Loss Streak 6 | . 1 6 1 Average Slot Usage (%) 92 | . 95 90 99 Engine 4 | . 13 2 11 Core 5 | . . 7 . Treads 12 | . . 16 . Leg 14 | . 28 10 32 Device 9 | . . 11 11 Storage 11 | . 14 11 11 Processor 7 | . . 8 11 Protection 2 | . 10 . . Energy Gun 3 | . 14 1 . Ballistic Cannon 17 | . 5 19 22 Naked Turns . | . . . . Heaviest Build 35 | 13 15 35 35 Greatest Support 63 | 20 20 63 51 Greatest Overweight (x) 5 | 2 . 5 1 Average Overweight (x) . | . . . . Largest Inventory Capacity 10 | 6 6 10 10 Average Capacity 7 | 5 6 7 10 Most Carried 10 | 4 6 10 10 Average Carried 6 | 1 3 6 9 Final Capacity 10 | 6 6 10 10 Final Carried 10 | 2 5 10 10 Class Distribution -------------------- 90% | Mutant 9% | Scavenger-Mutant Dominant Class ---------------- Mutant | -10/Materials Mutant | -9/Materials Mutant | -9/Storage Resources | -11 -10 -9 -9 ----------- Run | Scr Mat Mat Sto Matter Collected 2065 | 211 291 1407 156 Remotely . | . . . . Salvage Created 2196 | . 587 1301 308 Parts 155 | . 36 92 27 Haulers Intercepted 1 | . . 1 . Recyclers Shooed 2 | . . 1 1 Parts Field Recycled . | . . . . Retrieved Matter . | . . . . Parts Self-Destructed . | . . . . Prevented . | . . . . Kills | -11 -10 -9 -9 ------- Run | Scr Mat Mat Sto Combat Hostiles Destroyed 73 | . 17 46 10 Guns 6 | . 5 1 . Cannons 66 | . 11 45 10 AOE 1 | . 1 . . Classes Destroyed 9 | . 5 4 . Worker 3 | . 2 . 1 Builder 1 | . . 1 . Hauler 1 | . . 1 . Operator 4 | . 1 3 . Watcher 7 | . 1 5 1 Swarmer 25 | . 6 16 3 Grunt 34 | . 11 18 5 Brawler 2 | . . 2 . Sentry 12 | . . 10 2 Best Kill Streak 8 | . 8 8 6 Combat Bots Only 8 | . 8 8 5 Max Kills in Single Turn 2 | . 2 2 2 Gunslinging 1 | . 1 . . Exploded 1 | . 1 . . Melee . | . . . . Uniques/NPCs Destroyed . | . . . . Combat | -11 -10 -9 -9 -------- Run | Scr Mat Mat Sto Damage Taken 3262 | . 853 2120 289 Core 535 | . 123 343 69 Absorbed by Shields . | . . . . Core Remaining (%) 75 | 100 50 . . Volleys Fired 218 | . 64 134 20 Largest 2 | . 2 2 2 Hottest 104 | . 95 104 88 Shots Fired 406 | . 119 247 40 Gun 77 | . 66 11 . Cannon 328 | . 52 236 40 Launcher 1 | . 1 . . Special . | . . . . Kinetic 336 | . 71 225 40 Thermal 44 | . 22 22 . Explosive 1 | . 1 . . Electromagnetic 25 | . 25 . . Robot Hit Streak 15 | . 8 15 4 Robot Miss Streak 10 | . 10 4 5 Penetration Max . | . . . . Secondary Targets 2 | . 2 . . Max Gunslinging Chain 1 | . 1 . . Shots Hit Robots 212 | . 57 140 15 Core Hits 105 | . 30 62 13 Critical Hits 7 | . . 7 . Critical Kills 5 | . . 5 . Critical Parts Destroyed 2 | . . 2 . Melee Attacks . | . . . . Impact . | . . . . Slashing . | . . . . Piercing . | . . . . Sneak Attacks . | . . . . Combat Hostiles . | . . . . Follow-up Attacks . | . . . . Damage Inflicted 4769 | . 1050 3216 503 Guns 572 | . 449 123 . Cannons 3960 | . 365 3092 503 Explosions 236 | . 236 . . Melee . | . . . . Ramming 1 | . . 1 . Kinetic 3816 | . 379 2934 503 Thermal 660 | . 379 281 . Explosive 100 | . 100 . . Electromagnetic 192 | . 192 . . Impact . | . . . . Slashing . | . . . . Piercing . | . . . . Highest Corruption 1 | . 1 1 1 Average Corruption 1 | . 1 1 1 Corruption Purged . | . . . . Effects 8 | . . 5 3 Message Errors 3 | . . 1 2 Energy Discharges 3 | . . 2 1 Targeting Errors 2 | . . 2 . Overload Shots . | . . . . Overflow Damage 81 | . 46 35 . Projectiles 41 | . 6 35 . Explosions 40 | . 40 . . Melee . | . . . . Knockbacks 29 | . 3 26 . Impact . | . . . . Kinetic 28 | . 3 25 . Secondary 1 | . . 1 . Self-Inflicted Damage 102 | . 102 . . Shots 2 | . 2 . . Rammed 1 | . . 1 . Targets Rammed 1 | . . 1 . Kicked . | . . . . Crushed . | . . . . Highest Temperature 282 | . 282 222 96 Average Temperature 63 | . 80 57 39 Received Heat Transfer 774 | . 237 444 93 Effects 2 | . 2 . . Interference 2 | . 2 . . Siege Activations . | . . . . Robots Corrupted . | . . . . Combat Hostiles . | . . . . Parts Fried 1 | . 1 . . Impact Corruptions . | . . . . Robots Melted . | . . . . Combat Hostiles . | . . . . Parts Melted . | . . . . Heat Transferred 1334 | . 705 629 . Parts Sabotaged . | . . . . Parts Stolen . | . . . . Parts Stripped . | . . . . Power Chain Reactions 2 | . 2 . . Missiles Intercepted . | . . . . Alert | -11 -10 -9 -9 ------- Run | Scr Mat Mat Sto Peak Influence 757 | . 307 757 624 Initial 319 | . . 129 319 Average 285 | . 82 323 450 Maximum Alert Level 3 | . 1 3 2 Low Security (%) 28 | 100 89 16 . Level 1 49 | . 10 61 20 Level 2 17 | . . 17 79 Level 3 3 | . . 5 . Level 4 . | . . . . Level 5 . | . . . . High Security . | . . . . Max Security . | . . . . Squads Dispatched 9 | . 2 6 1 Investigation 4 | . 1 3 . Extermination . | . . . . Reinforcement 5 | . 1 3 1 Assault . | . . . . Garrison . | . . . . Intercept . | . . . . Construction Impeded 1 | . . . 1 Haulers Reinforced . | . . . . Stealth | -11 -10 -9 -9 --------- Run | Scr Mat Mat Sto Distress Signals 4 | . 3 . 1 Communications Jammed . | . . . . Distress Signals . | . . . . Times Spotted 106 | . 26 66 14 Peak Tracking Total 7 | . 6 7 7 Tactical Retreats 9 | . 1 8 . Traps | -11 -10 -9 -9 ------- Run | Scr Mat Mat Sto Traps Triggered 5 | . 1 4 . Indirectly . | . . . . Trap Hack Attempts . | . . . . Triggered . | . . . . Disarmed . | . . . . Reprogrammed . | . . . . Reused . | . . . . Traps Extracted . | . . . . Installed . | . . . . Triggered . | . . . . Machines | -11 -10 -9 -9 ---------- Run | Scr Mat Mat Sto Machines Disabled 6 | . 1 4 1 Max in Single Turn 1 | . 1 1 1 Machines Sabotaged . | . . . . Garrisons Compromised . | . . . . Overloaded Fab Kills . | . . . . Fab Network Shutdowns . | . . . . Hacking | -11 -10 -9 -9 --------- Run | Scr Mat Mat Sto Machines Accessed 19 | . 4 13 2 Terminals 13 | . 3 8 2 Fabricators . | . . . . Repair Stations 2 | . . 2 . Recycling Units 3 | . 1 2 . Scanalyzers 1 | . . 1 . Garrison Access . | . . . . Total Hacks 61 | . 13 44 4 Successful 45 | . 7 35 3 Failed 16 | . 6 9 1 Catastrophic 1 | . . 1 . Database Lockouts . | . . . . Manual 17 | . 6 8 3 Terminals 39 | . 8 27 4 Fabricators . | . . . . Repair Stations 7 | . . 7 . Recycling Units 13 | . 5 8 . Scanalyzers 2 | . . 2 . Garrison Access . | . . . . Terminal Hacks 15 | . . 14 1 Record 1 | . . 1 . Prototype ID Bank 1 | . . 1 . Open Door 1 | . . . 1 Reinforcement Status 1 | . . 1 . Assault Status 3 | . . 3 . Recall Investigation 1 | . . 1 . Recall Reinforcements 2 | . . 2 . Recall Assault 1 | . . 1 . Zone Layout 4 | . . 4 . Fabricator Hacks . | . . . . Repair Station Hacks 6 | . . 6 . Scan Component 3 | . . 3 . Repair 3 | . . 3 . Recycling Unit Hacks 10 | . 5 5 . Recycle Component 2 | . 2 . . Process 2 | . 1 1 . Report Inventory 4 | . 1 3 . Retrieve Matter 1 | . . 1 . Retrieve Components 1 | . 1 . . Scanalyzer 2 | . . 2 . Insert Component 1 | . . 1 . Analyze 1 | . . 1 . Garrison Access Hacks . | . . . . Unauthorized Hacks 12 | . 2 8 2 Terminals 12 | . 2 8 2 Botnet 12 | . 2 8 2 Fabricators . | . . . . Repair Stations . | . . . . Recycling Units . | . . . . Scanalyzers . | . . . . Garrison Access . | . . . . Data Cores Recovered 1 | . 1 . . Used . | . . . . Hacking Detections 17 | . 3 12 2 Full Trace Events 6 | . 2 4 . Feedback Events 1 | . . 1 . Corruption 1 | . . 1 . Feedback Blocked . | . . . . Robot Schematics Acquired . | . . . . Robots Built . | . . . . Matter . | . . . . Time . | . . . . Total Robot Build Rating . | . . . . Part Schematics Acquired 1 | . . 1 . Parts Built . | . . . . Matter . | . . . . Time . | . . . . Total Part Build Rating . | . . . . Parts Repaired 3 | . . 3 . Time 108 | . . 108 . Parts Recycled 2 | . 2 . . Recycled Matter 304 | . 18 286 . Retrieved Matter 286 | . . 286 . Retrieved Components 10 | . 10 . . Parts Scanalyzed 1 | . . 1 . Part Schematics Acquired 1 | . . 1 . Parts Damaged . | . . . . Bothacking | -11 -10 -9 -9 ------------ Run | Scr Mat Mat Sto Used RIF Installer . | . . . . Robots Hacked . | . . . . Non-combat . | . . . . Combat . | . . . . Robot Hacks Applied . | . . . . Relay Couplers Released . | . . . . Robots Rewired . | . . . . Allies Hacked . | . . . . Hacks Repelled . | . . . . Allies | -11 -10 -9 -9 -------- Run | Scr Mat Mat Sto Total Allies . | . . . . Largest Group . | . . . . Highest-Rated Group . | . . . . Highest-Rated Ally . | . . . . Total Orders . | . . . . Ally Attacks . | . . . . Total Damage . | . . . . Kills . | . . . . Allies Corrupted . | . . . . Allies Melted . | . . . . Intel | -11 -10 -9 -9 ------- Run | Scr Mat Mat Sto Robot Analysis Total . | . . . . Derelict Logs Recovered . | . . . . Drone Launches . | . . . . Drone Recoveries . | . . . . Exploration | -11 -10 -9 -9 ------------- Run | Scr Mat Mat Sto Turns Passed 4597 | 64 777 3495 261 Spaces Moved 2490 | 42 446 1851 151 Core 37 | 14 . 23 . Treads 904 | . . 904 . Legs 1549 | 28 446 924 151 Wheels . | . . . . Hover . | . . . . Flight . | . . . . Fastest Speed 50 | 50 120 120 130 Average Speed 141 | 118 120 147 130 Slowest Speed 300 | 150 120 300 160 Overloaded Moves . | . . . . Propulsion Burnouts . | . . . . Robots Hopped . | . . . . Cave-ins Triggered . | . . . . Exploration Rate (%) 46 | 4 64 92 25 Regions Visited 3 Branch Regions 1 Pre-discovered Areas . | . . . . Known Exits Taken 1 | . . 1 . Unknown Exits Taken 2 | 1 1 . . Scrap Searched . | . . . . Spaces Dug 1 | . . 1 . Terrain Destroyed 54 | . 14 27 13 Melee . | . . . . Projectile 40 | . . 27 13 AOE 14 | . 14 . . Terrain Rammed . | . . . . Walls Destroyed . | . . . . Machines Disabled . | . . . . Actions | -11 -10 -9 -9 --------- Run | Scr Mat Mat Sto Total 3180 | 56 575 2373 176 Wait 280 | . 27 250 3 Move 2487 | 41 445 1850 151 Hop . | . . . . Pick Up 85 | 8 17 59 1 Fast Attach . | . . . . Attach 41 | 6 5 30 . Detach 7 | . . 7 . Swap 22 | 1 9 12 . Drop 39 | . 8 30 1 Fire 218 | . 64 134 20 Melee . | . . . . Ram . | . . . . Kick 1 | . . 1 . Crush . | . . . . Escape Stasis . | . . . . Rewire . | . . . . Trap . | . . . . Miscellaneous . | . . . . Route ------- -11/Scrapyard -10/Materials (discovered 2 exits: *Mat / [*Min]) -9/Materials (discovered 6 exits: *Mat x3 / [*Min] / *Sto x2) -9/Storage History --------- Turn | Location | Event 11 | -11/Scrapyard | Discovered new exit (range 15) 65 | -11/Scrapyard | Entered Materials 178 | -10/Materials | Discovered new exit (range 10) 309 | -10/Materials | Build established: Mutant 510 | -10/Materials | Discovered new exit (range 15) 819 | -10/Materials | Destroyed 8 combat bots 842 | -10/Materials | Entered another Materials area 842 | -9/Materials | Evolved 2 slots: Propulsion x1, Utility x1 1077 | -9/Materials | Discovered new exit (range 15) 1120 | -9/Materials | Lost 3 parts (1p2w) 1178 | -9/Materials | Lost 6 parts (3n2u1w) 1429 | -9/Materials | Repaired Imp. Light Cannon 1664 | -9/Materials | Core integrity fell below 50% 1748 | -9/Materials | Discovered new exit (range 11) 2000 | -9/Materials | Discovered new exit (range 15) 2111 | -9/Materials | Repaired Assault Cannon 2152 | -9/Materials | Repaired Assault Cannon 2222 | -9/Materials | Discovered new exit (range 18) 2233 | -9/Materials | Build established: Scavenger-Mutant 2547 | -9/Materials | Build established: Mutant 2756 | -9/Materials | Discovered new exit (range 7) 2769 | -9/Materials | Identified exit to Materials 2809 | -9/Materials | Identified exit to Storage 3235 | -9/Materials | Discovered exit to Materials (range 15) 3985 | -9/Materials | Destroyed 8 combat bots 4192 | -9/Materials | Core integrity fell below 20% 4337 | -9/Materials | Entered Storage 4598 | -9/Storage | Destroyed by Y-45 Defender with Heavy Assault Rifle Last Messages --------------- 04573_ S-10 Pest destroyed. 04574_ K-01 Serf collects debris. 04577_ S-10 Pest destroyed. 04577_ K-01 Serf collects debris. 04579_ ALERT: Construction progress impeded, dispatching reinforcements to local area. 04579_ U-05 Engineer builds a Wall. 04581_ K-01 Serf collects debris. 04585_ S-10 Pest destroyed. 04585_ Y-45 Defender destroyed. 04586_ K-01 Serf collects debris. 04586_ U-05 Engineer builds a Wall. 04589_ K-01 Serf collects debris. 04590_ W-16 Scout destroyed. 04590_ K-01 Serf collects debris. 04591_ U-05 Engineer builds a Door. 04592_ R-06 Scavenger collects Lgt. Ion Engine. 04593_ K-01 Serf collects debris. 04596_ K-01 Serf destroyed. 04596_ K-01 Serf collects debris. Map ----- +----------------------------------------------------+ | ?????????????????????????????????????????????????? | | ?????????????????????????????????????????????????? | | ?????????????????????????????????????????????????? | | ?????????????????????????????????????????????????? | | ?????????????????????????????????????????????????? | | ?????????????????????????????????????????????????? | | ?????????????????????????????????????????????????? | | ??????????###????????????????????????????????????? | | ???????#### ######???????????????????????????????? | | ???????# #???????????????????????????????? | | ???????# """ """ #??????#????????????????????????? | | ???????# """[ "" #????## ????????????????????????? | | ???????# """%""" #????# x#??????????????????????? | | ???????# !! #????# #??????????????????????? | | ???????# ####### ######## #?##???????????? | | ???????# / + / #???????????? | | ???#???# [ # # + ???????? | | ############+##### #?? ##??????????? | | # #???????????? | | r """ """ #???????????? | | # """ ""? #???????????? | | ######################## # """ "???????????????? | | ???????????????????????#% #? ???????????????? | | ???????????????????????#= #?####????????????????? | | ???????????????????????#a #?????????????????????? | | ???????????????????????# @ #?????????????????????? | | ??????#######??????????# #?????????????????????? | | ####### #??????????# u#?????????????????????? | | "" #??????????#!% #?????????????????????? | | T #??????????#=% #?????????????????????? | | #??????????#% #?????????????????????? | | ####### #????x?????#Y=k#?????????????????????? | | ??????###+####?x???????#%*a#?????????????????????? | | ????????# T#?????????+[*%+?????????????????????? | | ????????## ###?????????# [*##????????????????????? | | ????????#! !#??????????# #?????????????????????? | | ????????#!! #??????????+ #?????????????????????? | | ????????#! !#??????????# [!#?????????????????????? | | ????????#! !#??????????# !u#?????????????????????? | | ????????#####???????????k[=!?????????????????????? | | ???????????????????????? #?????????????????????? | | ???????????????????????? #?????????????????????? | | ???????????????????????? #?????????????????????? | | ???????????????????????? +?????????????????????? | | ???????????????????????? ??????????????????????? | | ?????????????????????????????????????????????????? | | ?????????????????????????????????????????????????? | | ?????????????????????????????????????????????????? | | ?????????????????????????????????????????????????? | | ?????????????????????????????????????????????????? | +----------------------------------------------------+ Best States ------------- Heat Dissipation 38 Energy Generation 14 Energy Capacity 280 Matter Stores 300 Matter Capacity 300 Sight Range 18 Robot Scan Range 13 Terrain Scan Range 14 Terrain Scan Density 10 Additional Mass Support 6 Core Shielding 20 Evasion (%) 40 Recoil Reduction 3 Item Schematics ----------------- Imp. Light Cannon | -9/Materials | Scanalyzed Robot Schematics ------------------ None Fabricated ------------ Nothing Alien Tech Used ----------------- None Achievements -------------- GoHome() Storm Trooper Challenges ------------ None Game ------ Seed AutogunBlastSpear Manual? 0 Play Time 01:15:13 Cumulative 11.0 hours Start 2020.09.17 @ 22:10:26 End 2020.09.17 @ 23:28:33 Sessions 1 Manual Loads 0 Difficulty Rogue Special Mode None Game No. 9 Rogue 9 Adventurer 0 Explorer 0 Win Type - Total 0 Types 0/0/0/0/0/0/0/0/0 Lore% 6 Gallery% 15 Achievement% 14 Wizard Run 0 Options --------- ASCII 0 Keyboard 0 Movement Numpad Keybinds 0 Fullscreen 1 Font 18/SmallcapsGlow Map View 76x50 Tactical HUD 1 Map Filters NONE Filters NONE Steam 1 RUN: d02ee530-450c-4797-9267-4f30c5ea7f86